Cogmind - Beta 16.1 @@@ ROGUE MODE // 2026.04.10 @ 19:24:12 Player: Maelyn Result: Destroyed by P-60 Hacker with Shock Rifle Performance ------------- Evolutions (3) 1500 Regions Visited (8) 1600 Robots Destroyed (100) 500 Value Destroyed (2451) 2451 Prototype IDs (4) 80 Alien Tech Used (0) 0 Bonus (308) 308 TOTAL SCORE: 6439 Bonus ------- Follower Combat Kills 308 Cogmind --------- Core Integrity 0/700 Matter 51/300 Energy 28/150 System Corruption 8% Temperature Cool (0) Movement Rolling (80) Location -7/Factory Parts ------- > --- POWER (1) -------- Micro Nuclear Core > --- PROPULSION (4) --- Wheel Wheel Wheel Wheel > --- UTILITY (6) ------ Improved Heat Sink Improved Sensor Array Target Analyzer Improved Light Armor Plating Improved Light Armor Plating > --- WEAPON (2) ------- Shock Rifle Rocket Launcher > --- INVENTORY (5) ---- Heavy Ion Engine Light Deuterium Engine Shock Rifle Gatling Laser Plasma Cannon Peak State ------------ > --- POWER ------------ Light Nuclear Core > --- PROPULSION ------- Improved Flight Unit Improved Flight Unit > --- UTILITY ---------- High-capacity Battery Experimental Sensor Array Improved Signal Interpreter Transmission Jammer Improved Medium Armor Plating Hacking Suite > --- WEAPON ----------- Field Laser > --- INVENTORY -------- Heavy Ion Engine Deuterium Engine Light Deuterium Engine Particle Gun Grenade Launcher [Rating: 37] Favorites ----------- Power Ion Engine Engine Ion Engine Power Core Light Nuclear Core Propulsion Light Treads Treads Light Treads Leg Improved Aluminum Leg Wheel Wheel Flight Unit Improved Flight Unit Utility Huge Storage Unit Device Improved Heat Sink Storage Huge Storage Unit Processor Target Analyzer Hackware Hacking Suite Protection Medium Armor Plating Weapon Autogun Energy Gun Beam Rifle Energy Cannon Beam Cannon Ballistic Gun Autogun Ballistic Cannon Improved Light Cannon Launcher Rocket Launcher Build | -11 -10 -10 -9 -9 -9 -8 -8 -7 ------- Run | Yrd Mat Min Mat Min Exi Min Mat Fac Slots Evolved 6 | . . . 2 . . . 2 2 Power . | . . . . . . . . . Propulsion 2 | . . . 1 . . . 1 . Utility 4 | . . . 1 . . . 1 2 Weapon . | . . . . . . . . . Parts Attached 78 | 7 9 . 13 6 1 1 11 30 Power 10 | 1 1 . 1 1 . . 3 3 Engine 5 | 1 1 . 1 . . . 1 1 Core 5 | . . . . 1 . . 2 2 Reactor . | . . . . . . . . . Propulsion 22 | 2 2 . 5 3 . . 3 7 Treads 7 | 2 . . 5 . . . . . Leg 5 | . 2 . . 3 . . . . Wheel 5 | . . . . . . . . 5 Hover . | . . . . . . . . . Flight 5 | . . . . . . . 3 2 Utility 20 | 2 1 . 2 2 1 . 2 10 Device 6 | 1 . . . 2 . . . 3 Storage 5 | 1 1 . 1 . 1 . 1 . Processor 2 | . . . . . . . . 2 Hackware 1 | . . . . . . . 1 . Protection 6 | . . . 1 . . . . 5 Artifact . | . . . . . . . . . Weapon 26 | 2 5 . 5 . . 1 3 10 Energy Gun 11 | 1 . . 3 . . 1 3 3 Energy Cannon 2 | . . . 1 . . . . 1 Ballistic Gun 7 | 1 5 . . . . . . 1 Ballistic Cannon 4 | . . . 1 . . . . 3 Launcher 2 | . . . . . . . . 2 Special Weapon . | . . . . . . . . . Impact Weapon . | . . . . . . . . . Slashing Weapon . | . . . . . . . . . Piercing Weapon . | . . . . . . . . . Special Melee Weapon . | . . . . . . . . . Unidentified Prototypes 4 | . . . 2 1 . . 1 . Parts Lost 38 | . 2 . 4 5 . . 6 21 Power 5 | . . . . 1 . . . 4 Propulsion 13 | . 1 . 2 3 . . 3 4 Utility 11 | . 1 . 1 . . . 1 8 Weapon 9 | . . . 1 1 . . 2 5 Highest Loss Streak 16 | . 1 . 1 2 . . 5 16 To Critical Strikes 1 | . . . . 1 . . . . Average Backups 12 | 1 7 9 15 24 10 9 8 4 Power 1 | . 1 1 1 2 . 1 2 2 Propulsion 2 | . 1 . . 5 3 4 2 . Utility 3 | . 2 4 5 7 2 2 2 . Weapon 4 | . 2 4 7 9 3 2 1 1 Tool/Special . | . . . . . . . . . Unused Backups 17 | . 5 . . . 6 . 2 4 Power 4 | . 1 . . . . . 1 2 Propulsion 3 | . 2 . . . . . 1 . Utility 4 | . 1 . . . 3 . . . Weapon 4 | . . . . . 3 . . 1 Tool/Special 2 | . 1 . . . . . . 1 Average Slot Usage (%) 80 | . 96 85 74 87 77 81 73 58 Engine 8 | . 14 14 11 10 . . 1 2 Core 1 | . . . . . 11 11 7 2 Treads 10 | . 17 . 12 21 . . . . Leg 8 | . 9 28 7 1 33 33 11 . Flight 2 | . . . . . . . 11 7 Device 7 | . 11 . . 10 11 11 3 8 Storage 14 | . 14 14 12 22 22 22 18 3 Protection 3 | . . . 9 . . . . 10 Energy Gun 6 | . 1 . 2 10 . 4 17 6 Energy Cannon 3 | . . . 2 11 . . . 3 Ballistic Gun 8 | . 26 28 9 . . . . . Ballistic Cannon 1 | . . . 6 . . . . 1 Peak Build Rating 37 | 7 12 11 17 24 20 21 25 37 Average Rating 16 | 5 9 11 12 17 17 18 21 24 On Entrance 14 | . 7 11 11 15 21 18 21 22 Avg Prop Armor Cover (%) 4 | . . . . 12 . . . 4 Naked Turns . | . . . . . . . . . Heaviest Build 105 | 14 91 91 105 99 20 26 29 25 Greatest Support 60 | 40 40 26 60 60 40 40 40 40 Greatest Overweight (x) 32 | . 4 3 32 32 . . 8 7 Average Overweight (x) 1 | . . 3 3 2 . . . 1 Largest Inventory Capacity 25 | 8 25 25 25 25 25 10 10 10 Average Capacity 16 | 6 9 25 25 25 10 10 10 5 Most Carried 25 | 4 9 10 25 25 24 10 10 8 Average Carried 12 | 1 7 9 15 24 9 9 8 3 Final Capacity 25 | 8 25 25 25 25 10 10 10 5 Final Carried 25 | 4 9 10 25 24 10 8 8 5 Class Distribution -------------------- 78% | Mutant 21% | Scavenger-Mutant Dominant Class ---------------- Mutant | -10/Materials Mutant | -10/Mines Mutant | -9/Materials Mutant | -9/Mines Scavenger-Mutant | -9/Exiles Scavenger-Mutant | -8/Mines Mutant | -8/Materials Mutant | -7/Factory Resources | -11 -10 -10 -9 -9 -9 -8 -8 -7 ----------- Run | Yrd Mat Min Mat Min Exi Min Mat Fac Matter Collected 1925 | 237 666 72 314 154 . 55 120 307 Remotely . | . . . . . . . . . Salvage Created 3508 | 30 902 93 731 295 . 48 770 639 Parts 197 | 6 55 5 35 16 . 6 28 46 Haulers Intercepted 7 | . 1 . 4 . . . 2 . Recyclers Shooed 6 | . . . 2 1 . . 1 2 Parts Field Recycled . | . . . . . . . . . Retrieved Matter . | . . . . . . . . . Parts Self-Destructed . | . . . . . . . . . Prevented . | . . . . . . . . . Parts Restored . | . . . . . . . . . Kills | -11 -10 -10 -9 -9 -9 -8 -8 -7 ------- Run | Yrd Mat Min Mat Min Exi Min Mat Fac Combat Hostiles Destroyed 65 | . 18 2 7 9 . 3 13 13 Guns 45 | . 18 2 2 4 . 3 12 4 Cannons 14 | . . . 5 4 . . . 5 AOE 5 | . . . . . . . 1 4 Classes Destroyed 14 | 1 7 . 2 2 . . . 2 Worker 6 | . 2 . . 1 . . . 3 Builder 4 | . 1 . . . . . . 3 Tunneler 2 | 2 . . . . . . . . Hauler 7 | . 1 . 4 . . . 2 . Recycler 7 | . . . 4 . . . 1 2 Mechanic 3 | . . . . . . . . 3 Operator 3 | . 2 . . . . . 1 . Watcher 3 | . 3 . . . . . . . Swarmer 24 | . 3 . 3 4 . 3 3 8 Grunt 27 | . 15 2 2 2 . . 6 . Brawler 3 | . . . . 2 . . 1 . Duelist 1 | . . . . 1 . . . . Sentry 7 | . . . 2 . . . 3 2 Programmer 3 | . . . . . . . . 3 Best Kill Streak 6 | 2 6 2 3 4 . 3 3 5 Combat Bots Only 4 | . 4 2 2 4 . 3 3 4 Max Kills in Single Turn 4 | 2 2 1 1 1 . 2 2 4 Gunslinging 1 | . . . . . . 1 . . Exploded 4 | . . . . . . . 1 4 Melee . | . . . . . . . . . Uniques/NPCs Destroyed . | . . . . . . . . . Combat | -11 -10 -10 -9 -9 -9 -8 -8 -7 -------- Run | Yrd Mat Min Mat Min Exi Min Mat Fac Hostile Shots Fired 781 | . 90 17 106 37 . 4 112 415 Missed 274 | . 34 5 39 7 . 1 32 156 Hits 507 | . 56 12 67 30 . 3 80 259 Melee 8 | . . . . 8 . . . . Projectile 499 | . 56 12 67 22 . 3 80 259 Critical Strikes 14 | . . . . 3 . 1 3 7 Damage Taken 6208 | . 676 169 780 496 . 19 1129 2939 Core 1372 | . 109 38 87 119 . 6 308 705 Absorbed by Shields . | . . . . . . . . . Core Remaining (%) 58 | 100 . 41 . . . 47 44 . Volleys Fired 305 | 1 78 9 41 28 . 2 63 83 Largest 2 | 2 2 2 2 2 . 2 2 2 Hottest 160 | 60 60 46 116 116 . 121 128 160 Shots Fired 542 | 2 156 18 67 52 . 4 122 121 Gun 425 | 2 156 18 28 23 . 4 122 72 Cannon 113 | . . . 39 29 . . . 45 Launcher 4 | . . . . . . . . 4 Special . | . . . . . . . . . Kinetic 257 | 1 155 18 51 . . . . 32 Thermal 253 | 1 1 . 16 52 . 4 122 57 Explosive 4 | . . . . . . . . 4 Electromagnetic 28 | . . . . . . . . 28 Robot Hit Streak 17 | 1 17 5 12 7 . 11 10 7 Robot Miss Streak 7 | . 4 2 3 3 . . 4 7 Penetration Max . | . . . . . . . . . Secondary Targets 5 | . 2 1 . . . 1 1 . Max Gunslinging Chain 1 | . 1 1 . . . 1 1 . Shots Hit Robots 329 | 1 92 12 42 34 . 4 71 73 Core Hits 155 | 2 36 3 18 12 . 3 31 50 Critical Kills 1 | . 1 . . . . . . . Critical Parts Destroyed 1 | . 1 . . . . . . . Critical Strikes 10 | . 2 . 5 2 . . 1 . Burn 6 | . . . 3 2 . . 1 . Destroy 2 | . 2 . . . . . . . Blast 2 | . . . 2 . . . . . Melee Attacks . | . . . . . . . . . Impact . | . . . . . . . . . Slashing . | . . . . . . . . . Piercing . | . . . . . . . . . Sneak Attacks . | . . . . . . . . . Combat Hostiles . | . . . . . . . . . Follow-up Attacks . | . . . . . . . . . Damage Inflicted 5972 | 23 1360 187 810 564 . 59 1306 1663 Guns 4049 | 23 1358 187 254 247 . 59 1211 710 Cannons 1552 | . . . 556 297 . . . 699 Explosions 337 | . . . . . . . 85 252 Melee . | . . . . . . . . . Ramming 34 | . 2 . . 20 . . 10 2 Kinetic 2688 | 12 1358 187 619 . . . . 512 Thermal 2782 | 11 . . 191 544 . 59 1211 766 Explosive 252 | . . . . . . . . 252 Electromagnetic 216 | . . . . . . . 85 131 Impact . | . . . . . . . . . Slashing . | . . . . . . . . . Piercing . | . . . . . . . . . Highest Corruption 7 | . . . 1 7 7 7 1 7 Average Corruption 4 | . . . 1 3 7 7 1 4 Corruption Purged . | . . . . . . . . . Corruption Blocked . | . . . . . . . . . Effects 68 | . . . . 31 2 8 . 27 Message Errors 17 | . . . . 8 1 1 . 7 Matter Fused 23 | . . . . 10 . 2 . 11 Heat Flow Errors 9 | . . . . 5 1 1 . 2 Energy Discharges 5 | . . . . 1 . 2 . 2 Data Loss (minor) 4 | . . . . 2 . 1 . 1 Data Loss (major) 5 | . . . . 2 . 1 . 2 Misfires 2 | . . . . 2 . . . . Alerts 1 | . . . . 1 . . . . Weapon Failures 2 | . . . . . . . . 2 Overload Shots . | . . . . . . . . . Overflow Damage 58 | . . . 11 7 . . . 40 Projectiles 58 | . . . 11 7 . . . 40 Explosions . | . . . . . . . . . Melee . | . . . . . . . . . Knockbacks 5 | . . . 3 . . . . 2 Impact . | . . . . . . . . . Kinetic 5 | . . . 3 . . . . 2 Secondary . | . . . . . . . . . Self-Inflicted Damage 103 | . . . . . . . 54 49 Shots 5 | . . . . . . . 2 3 Rammed 5 | . 1 . . 2 . . . 2 Targets Rammed 8 | . 1 1 . 3 . . 1 2 Kicked 2 | . . 1 . . . . 1 . Crushed 1 | . . . . 1 . . . . Highest Temperature 504 | . 35 47 105 219 183 168 504 279 Average Temperature 66 | . 6 25 24 58 102 52 92 84 Received Heat Transfer 1626 | . 309 96 336 114 . . 423 348 Effects 3 | . . . . . . . 3 . Energy Bleed 1 | . . . . . . . 1 . Matter Decay 1 | . . . . . . . 1 . Damage (core) 1 | . . . . . . . 1 . Siege Activations . | . . . . . . . . . Martial Activations . | . . . . . . . . . Shielding Activations . | . . . . . . . . . Robots Disrupted . | . . . . . . . . . Combat Hostiles . | . . . . . . . . . Robots Corrupted . | . . . . . . . . . Combat Hostiles . | . . . . . . . . . Parts Fried 1 | . . . . . . . 1 . Impact Corruptions . | . . . . . . . . . Robots Melted 1 | . . . . 1 . . . . Combat Hostiles 1 | . . . . 1 . . . . Parts Melted 12 | . . . 1 . . . 8 3 Heat Transferred 6686 | 25 . . 666 1406 . 148 2849 1592 Parts Sabotaged . | . . . . . . . . . Parts Stolen . | . . . . . . . . . Parts Stripped . | . . . . . . . . . Power Chain Reactions . | . . . . . . . . . Alert | -11 -10 -10 -9 -9 -9 -8 -8 -7 ------- Run | Yrd Mat Min Mat Min Exi Min Mat Fac Maximum Alert Level . | . . . . . . . . . Low Security (%) 100 | 100 100 100 100 100 . 100 100 100 Level 1 . | . . . . . . . . . Level 2 . | . . . . . . . . . Level 3 . | . . . . . . . . . Level 4 . | . . . . . . . . . Level 5 . | . . . . . . . . . High Security . | . . . . . . . . . Max Security . | . . . . . . . . . Peak Influence 160 | 10 160 85 137 92 . 70 115 121 Initial 45 | . . 45 . 37 . . 15 37 Average 33 | 2 55 15 50 18 . 11 60 16 Influence Increases 2435 | 10 511 103 536 295 . 70 454 456 Destroy 0b10 Robot/C 1580 | . 360 80 320 240 . 60 260 260 Destroy 0b10 Robot/NC 205 | 10 45 . 70 5 . . 20 55 Destroy Leader 360 | . 78 20 78 40 . 10 64 70 Allied During Kill 50 | . . 3 37 10 . . . . Successful Hack 14 | . 10 . . . . . 4 . Disable Machine 105 | . 15 . 30 . . . 45 15 Destroy Structure 16 | . 3 . 1 . . . 1 11 Lose Combat Pursuer 105 | . . . . . . . 60 45 Influence Decreases 2402 | 10 394 220 440 323 68 30 412 505 Entered New Map 269 | . . 72 . 59 68 . 25 45 Time Decay 1732 | 10 374 148 370 194 . 30 327 279 Lost Part 341 | . 20 . 30 50 . . 60 181 Lost Ally 60 | . . . 40 20 . . . . Squads Dispatched 9 | . 2 . 1 1 . . 1 4 Investigation 1 | . . . . . . . 1 . Extermination 3 | . . . . . . . . 3 Reinforcement 4 | . 2 . 1 . . . . 1 Assault 1 | . . . . 1 . . . . Garrison . | . . . . . . . . . Intercept . | . . . . . . . . . Searches Triggered . | . . . . . . . . . Construction Impeded 1 | . . . . . . . . 1 Haulers Reinforced . | . . . . . . . . . Active Scanning Responses . | . . . . . . . . . Cargo Convoy Interrupts . | . . . . . . . . . Stealth | -11 -10 -10 -9 -9 -9 -8 -8 -7 --------- Run | Yrd Mat Min Mat Min Exi Min Mat Fac Distress Signals 8 | . 2 . 3 . . . 3 . Communications Jammed . | . . . . . . . . . Distress Signals . | . . . . . . . . . Times Spotted 127 | . 27 4 28 12 . 3 28 25 Peak Tracking Total 8 | . 3 2 4 4 . 3 8 6 Tactical Retreats 5 | . . . . . . . 4 1 Traps | -11 -10 -10 -9 -9 -9 -8 -8 -7 ------- Run | Yrd Mat Min Mat Min Exi Min Mat Fac Traps Triggered 6 | . 4 . 1 . . . 1 . Indirectly . | . . . . . . . . . Trap Hack Attempts . | . . . . . . . . . Triggered . | . . . . . . . . . Disarmed . | . . . . . . . . . Reprogrammed . | . . . . . . . . . Reused . | . . . . . . . . . Traps Extracted . | . . . . . . . . . Installed . | . . . . . . . . . Triggered . | . . . . . . . . . Machines | -11 -10 -10 -9 -9 -9 -8 -8 -7 ---------- Run | Yrd Mat Min Mat Min Exi Min Mat Fac Machines Disabled 7 | . 1 . 2 . . . 3 1 Max in Single Turn 2 | . 1 . 1 . . . 2 1 Machines Repaired . | . . . . . . . . . Machines Dismantled . | . . . . . . . . . Machines Sabotaged . | . . . . . . . . . Overloaded Fab Kills . | . . . . . . . . . Hacking | -11 -10 -10 -9 -9 -9 -8 -8 -7 --------- Run | Yrd Mat Min Mat Min Exi Min Mat Fac Machines Accessed 3 | . 2 . . . . . 1 . Terminals 3 | . 2 . . . . . 1 . Fabricators . | . . . . . . . . . Repair Stations . | . . . . . . . . . Recycling Units . | . . . . . . . . . Scanalyzers . | . . . . . . . . . Garrison Access . | . . . . . . . . . Total Hacks 8 | . 5 . . . . . 3 . Successful 3 | . 2 . . . . . 1 . Failed 5 | . 3 . . . . . 2 . Catastrophic 1 | . . . . . . . 1 . Database Lockouts . | . . . . . . . . . Manual 8 | . 5 . . . . . 3 . Terminals 8 | . 5 . . . . . 3 . Fabricators . | . . . . . . . . . Repair Stations . | . . . . . . . . . Recycling Units . | . . . . . . . . . Scanalyzers . | . . . . . . . . . Garrison Access . | . . . . . . . . . Terminal Hacks 1 | . 1 . . . . . . . Robot Analysis 1 | . 1 . . . . . . . Fabricator Hacks . | . . . . . . . . . Repair Station Hacks . | . . . . . . . . . Recycling Unit Hacks . | . . . . . . . . . Scanalyzer . | . . . . . . . . . Garrison Access Hacks . | . . . . . . . . . Unauthorized Hacks 2 | . 1 . . . . . 1 . Terminals 2 | . 1 . . . . . 1 . Botnet 2 | . 1 . . . . . 1 . Fabricators . | . . . . . . . . . Repair Stations . | . . . . . . . . . Recycling Units . | . . . . . . . . . Scanalyzers . | . . . . . . . . . Garrison Access . | . . . . . . . . . Data Cores Recovered . | . . . . . . . . . Used . | . . . . . . . . . Hacking Detections 2 | . 1 . . . . . 1 . Full Trace Events 1 | . . . . . . . 1 . Feedback Events . | . . . . . . . . . Feedback Blocked . | . . . . . . . . . Robot Schematics Acquired . | . . . . . . . . . Robots Built . | . . . . . . . . . Authchips . | . . . . . . . . . Time . | . . . . . . . . . Total Robot Build Rating . | . . . . . . . . . Part Schematics Acquired . | . . . . . . . . . Parts Built . | . . . . . . . . . Authchips . | . . . . . . . . . Time . | . . . . . . . . . Total Part Build Rating . | . . . . . . . . . Part Studies Acquired . | . . . . . . . . . Parts Repaired . | . . . . . . . . . Time . | . . . . . . . . . Parts Recycled . | . . . . . . . . . Recycled Matter . | . . . . . . . . . Retrieved Matter . | . . . . . . . . . Retrieved Components . | . . . . . . . . . Parts Scanalyzed . | . . . . . . . . . Part Schematics Acquired . | . . . . . . . . . Parts Damaged . | . . . . . . . . . Bothacking | -11 -10 -10 -9 -9 -9 -8 -8 -7 ------------ Run | Yrd Mat Min Mat Min Exi Min Mat Fac Used RIF Installer . | . . . . . . . . . Robots Hacked . | . . . . . . . . . Non-combat . | . . . . . . . . . Combat . | . . . . . . . . . Robot Hacks Applied . | . . . . . . . . . Relay Couplers Released . | . . . . . . . . . Fabnet Peak Effective % . | . . . . . . . . . Robots Rewired . | . . . . . . . . . Allies Hacked . | . . . . . . . . . Hacks Repelled . | . . . . . . . . . Allies | -11 -10 -10 -9 -9 -9 -8 -8 -7 -------- Run | Yrd Mat Min Mat Min Exi Min Mat Fac Total Allies 5 | . . 4 . 1 . . . . Largest Group 3 | . . 3 3 1 . . . . Highest-Rated Group 40 | . . 40 40 31 . . . . Highest-Rated Ally 31 | . . 31 16 31 . . . . Total Orders . | . . . . . . . . . Ally Attacks 79 | . . 5 61 13 . . . . Total Damage 907 | . . 107 589 211 . . . . Kills 20 | . . 2 15 3 . . . . Allies Corrupted . | . . . . . . . . . Allies Melted . | . . . . . . . . . Intel | -11 -10 -10 -9 -9 -9 -8 -8 -7 ------- Run | Yrd Mat Min Mat Min Exi Min Mat Fac Active Infowar (turns) 2544 | 3 1347 . . 4 . . . 1190 Sensors 1163 | . . . . 4 . . . 1159 Seismic 1350 | 3 1347 . . . . . . . Jamming 279 | . . . . . . . . 279 Robot Analysis Total 1 | . 1 . . . . . . . Derelict Logs Recovered 1 | . . 1 . . . . . . Drone Launches . | . . . . . . . . . Drone Recoveries . | . . . . . . . . . Exploration | -11 -10 -10 -9 -9 -9 -8 -8 -7 ------------- Run | Yrd Mat Min Mat Min Exi Min Mat Fac Turns Passed 8660 | 83 1603 774 1330 2154 213 290 828 1385 Spaces Moved 3818 | 44 882 227 323 648 168 236 504 786 Core 157 | 3 1 . 2 19 . . 19 113 Treads 1363 | 41 542 . 191 589 . . . . Legs 1329 | . 339 227 130 40 168 236 189 . Wheels 378 | . . . . . . . . 378 Hover . | . . . . . . . . . Flight 591 | . . . . . . . 296 295 Fastest Speed 34 | 50 120 330 240 240 120 120 104 34 Average Speed 199 | 152 152 330 369 317 120 120 122 141 Slowest Speed 1650 | 160 330 330 1650 1650 120 120 450 440 Overloaded Moves . | . . . . . . . . . Propulsion Burnouts . | . . . . . . . . . Robots Hopped . | . . . . . . . . . Potential Cave-ins . | . . . . . . . . . Cave-ins Triggered . | . . . . . . . . . Exploration Rate (%) 46 | 4 97 40 47 86 30 65 41 9 Regions Visited 8 Branch Regions 4 Pre-discovered Areas . | . . . . . . . . . Known Exits Taken 1 | . . . 1 . . . . . Unknown Exits Taken 7 | 1 1 1 . 1 1 1 1 . Scrap Searched 3 | . . . . 1 . 2 . . Spaces Dug . | . . . . . . . . . Terrain Destroyed 11 | . . . 1 . . . . 10 Melee . | . . . . . . . . . Projectile 1 | . . . 1 . . . . . AOE 10 | . . . . . . . . 10 Terrain Rammed . | . . . . . . . . . Walls Destroyed . | . . . . . . . . . Machines Disabled . | . . . . . . . . . Actions | -11 -10 -10 -9 -9 -9 -8 -8 -7 --------- Run | Yrd Mat Min Mat Min Exi Min Mat Fac Total 4312 | 55 1006 237 391 689 183 239 592 920 Wait 7 | . 7 . . . . . . . Move 3810 | 43 881 226 322 647 167 235 503 786 Hop . | . . . . . . . . . Pick Up 54 | 4 17 1 15 . 7 . 5 5 Fast Attach 43 | 7 1 . 4 4 . . 2 25 Attach 24 | . 6 . 2 3 . 2 6 5 Detach 7 | . 1 . . 1 . . 3 2 Swap 25 | . 4 . 7 3 1 . 4 6 Drop 29 | . 10 . . . 8 . 5 6 Fire 305 | 1 78 9 41 28 . 2 63 83 Melee . | . . . . . . . . . Ram 2 | . . . . . . . . 2 Kick 2 | . . 1 . . . . 1 . Crush 4 | . 1 . . 3 . . . . Escape Stasis . | . . . . . . . . . Rewire . | . . . . . . . . . Trap . | . . . . . . . . . Miscellaneous . | . . . . . . . . . Route ------- -11/Scrapyard -10/Materials (discovered 6 exits: [*Mat x3] / [*Min x2] / [*Sub]) -10/Mines (discovered 2 exits: [*Mat] / [*Sub]) -9/Materials -9/Mines (discovered 3 exits: *Mat / [*Exi] / [*Zio]) -9/Exiles -8/Mines -8/Materials -7/Factory History --------- Turn | Location | Event 47 | -11/Scrapyard | Discovered new exit (range 14) 84 | -11/Scrapyard | Entered Materials 307 | -10/Materials | Build established: Mutant 434 | -10/Materials | Discovered new exit (range 11) 641 | -10/Materials | Discovered new exit (range 12) 892 | -10/Materials | Discovered new exit (range 16) 967 | -10/Materials | Discovered new exit (range 12) 1084 | -10/Materials | Derelicts attacked the area 1225 | -10/Materials | Discovered new exit (range 4) 1426 | -10/Materials | Discovered new exit (range 5) 1687 | -10/Materials | Entered Mines 1692 | -10/Mines | Core integrity fell below 50% 1707 | -10/Mines | Met a Derelict bent on vengeance 1978 | -10/Mines | Discovered new exit (range 8) 2074 | -10/Mines | Received a Mining Laser from a helpful Derelict 2392 | -10/Mines | Discovered new exit (range 14) 2418 | -10/Mines | Learned location of 1 exit from Materials 2448 | -10/Mines | Assisted by bots powering up and referring to "LRC-V3" 2461 | -10/Mines | Entered Materials 2461 | -9/Materials | Accompanied by 3 allies 2461 | -9/Materials | Evolved 2 slots: Propulsion x1, Utility x1 2462 | -9/Materials | Identified exit to Mines 3791 | -9/Materials | Entered Mines 3875 | -9/Mines | Found a damaged Exp. Sensor Array with a note attached 3880 | -9/Mines | Found Prototype Device 3880 | -9/Mines | Identified Exp. Sensor Array 3966 | -9/Mines | A Derelict revealed a hidden shortcut to a safe place 4171 | -9/Mines | Build established: Scavenger-Mutant 4855 | -9/Mines | Build established: Mutant 5110 | -9/Mines | Met a Derelict testing a Signal Generator 5714 | -9/Mines | Discovered new exit (range 7) 5816 | -9/Mines | Core integrity fell below 50% 5924 | -9/Mines | Deemed a non-threat by the Exiles lab entrance 5927 | -9/Mines | Discovered new exit (range 5) 5945 | -9/Mines | Entered Exiles 5945 | -9/Exiles | Found Exiles lab destroyed 6137 | -9/Exiles | Build established: Scavenger-Mutant 6137 | -9/Exiles | Discovered new exit (range 15) 6158 | -9/Exiles | Entered Mines 6196 | -8/Mines | Found a Scrap Suit stashed away for nefarious purposes 6438 | -8/Mines | Discovered new exit (range 10) 6448 | -8/Mines | Entered Materials 6448 | -8/Materials | Evolved 2 slots: Propulsion x1, Utility x1 6845 | -8/Materials | Lost 5 parts (3n1u1w) 7101 | -8/Materials | Discovered new exit (range 11) 7112 | -8/Materials | Build established: Mutant 7222 | -8/Materials | Core integrity fell below 50% 7276 | -8/Materials | Entered Factory 7276 | -7/Factory | Evolved 2 slots: Utility x2 7658 | -7/Factory | Core integrity fell below 50% 7692 | -7/Factory | Core integrity fell below 20% 7742 | -7/Factory | Lost 16 parts (2p2n7u5w) 8661 | -7/Factory | Destroyed by P-60 Hacker with Shock Rifle Last Messages --------------- 08574_ ALERT: Construction progress impeded, dispatching reinforcements to local area. 08577_ K-01 Serf collects debris. 08577_ System corrupted: Shock Rifle failed to cycle. 08577_ U-05 Engineer destroyed. 08579_ System corrupted: Energy discharge (-55). 08581_ Acquired 17 matter. 08582_ K-01 Serf collects debris. 08584_ Acquired Wheel. 08585_ Dropped VTOL Module. 08586_ K-01 Serf collects debris. 08590_ K-01 Serf destroyed. 08594_ System corrupted: Heat flow error (+215). 08598_ U-05 Engineer destroyed. 08605_ Acquired Wheel. 08610_ System corrupted: Energy discharge (-45). 08612_ Acquired 29 matter. 08615_ K-01 Serf collects debris. 08638_ KEXJ4#JDOENP=NEUMSCH 08658_ System corrupted: Matter fused (-8). Map ----- +----------------------------------------------------+ | ###### ##########?????????? | | #???????????? | | #???????????? | | ############# | | # ! # | | # # | | #+########### # # | | # # | | # % # | | + % #%[ # | | # + !! # | | # # ! # | | # !#% ! # | | ## T#*# # | | ##### # # | | #???#!# # | | #???#!# # | | #???# ############# | | ??### ###?????????? | | ############### #?????????? | | % #######???? | | %! #???? | | ! ? ##### #???? | | ############### #???#p#???? | | #??????#######?### ###?? | | """"=################ @ #?? | | """"!#*!=%== % #?? | | [ """"!+ !*= u #?? | | """"[#| !! k #?? | | """"[# ######+####### #?? | | """" # #?# #####+####? | | """"|# #?#! """" # # | | !# #?# """" # # | | "" # ### """" # !# | | """ # + """" # # | | "" ##### """" # """ """ # | | """" #??# """" # """ """ # | | """" ##??# """"?# """ """ # | | """" #???# ?# # | | """" #???#################### | | #??????????????????????? | | #??????????????????????? | | #########?????????????????????? | | #?????????????????????? | | #?????????????????????? | | "" #?????????????????????? | | "" """ ??????????????????????? | | """ ""????????????????????????? | | """ R????????????????????????? | | """ ""????????????????????????? | +----------------------------------------------------+ Best States ------------- Heat Dissipation 48 Energy Generation 15 Energy Capacity 530 Matter Stores 300 Matter Capacity 300 Sight Range 16 Robot Scan Range 20 Terrain Scan Density 10 Jamming Range 12 Armor Coverage 300 Evasion (%) 55 Target Analysis 5 Recoil Reduction 3 Offensive Hacking 10 Item Schematics ----------------- None Robot Schematics ------------------ None Fabricated ------------ Nothing Repaired ---------- Nothing Studied --------- None Alien Tech Used ----------------- None Achievements -------------- None Challenges ------------ None Game ------ Seed BombRingPod Manual? 0 Play Time 00:57:55 Cumulative 35.6 hours Start 2026.04.10 @ 18:29:17 End 2026.04.10 @ 19:24:12 Sessions 1 Manual Loads 0 Difficulty Rogue Special Mode None Game No. 93 Rogue 93 Adventurer 0 Explorer 0 Win Type - Total 0 Types 0/0/0/0/0/0/0/0/0/0 Lore% 14 Gallery% 24 Achievement% 16 Wizard Run 0 Options --------- Layout 2 ASCII 0 Keyboard 1 Movement Vi Keybinds 0 Fullscreen 2 Font 20/Terminus Map View 64x51 Zoom Use 0% Tactical HUD 1 Map Filters NONE Filters NONE Steam 1 RUN: ce13378d-4222-437e-8f8b-78c8fc184c3c